fUSD/lending_fUSD_20241017
["ID","MTS","AMOUNT","RATE_DAILY","PERIOD"]
[340402675,1729199596842,500.0,0.00025,120]
[340402676,1729199601713,200.0,0.00025,120]
[340402677,1729199608131,15838.54989664,0.000109,2]
[340402678,1729199620349,268.6748,0.000109,2]
[340402679,1729199666582,150.6044053,0.00010999,2]
[340402680,1729199667077,1336.65081928,0.00010999,2]
[340402681,1729199717913,-14803.3893,0.00010408,2]
[340402682,1729199808696,550.0,0.0001,2]
[340402684,1729199888123,180.05,9.099e-05,2]
[340402687,1729199925947,722.02,9.42e-05,2]
[340402694,1729200195602,500.0,0.00025,120]
[340402695,1729200200257,219.156715,0.00025,120]
[340402696,1729200299032,900.0,0.0002,30]
[340402699,1729200429163,685.91,8.886e-05,2]
[340402700,1729200434145,-3111.7248757,0.00010789,2]
[340402701,1729200434165,-190.68,0.0001081,2]
[340402702,1729200434187,-177.47,0.00010851,2]
[340402703,1729200434207,-129.04562841,0.00010905,2]
[340402704,1729200437560,180.05,8.683e-05,2]
[340402706,1729200572755,250.0,0.00010176,2]
[340402707,1729200599186,250.0,0.00010099,2]
[340402713,1729200615693,200.0,9.848e-05,2]
[340402726,1729200632218,-150.0,0.00010859,2]
[340402727,1729200632227,-14053.32784558,0.00010879,2]
[340402759,1729200638082,-489.02982378,0.00010879,2]
[340402760,1729200638093,-83.06233064,0.00010879,2]
[340402761,1729200638104,-150.0,0.00010899,2]
[340402762,1729200638113,-770.46480909,0.000109,2]
[340402763,1729200638123,-2500.0,0.000109,2]
[340402764,1729200638132,-514.11026219,0.000109,2]
[340402765,1729200638142,-10740.46231216,0.000109,2]
[340402766,1729200638151,-638.67753064,0.000109,2]
[340402767,1729200638160,-1723.37437159,0.00010905,2]
[340402768,1729200638170,-770.46480907,0.00010906,2]
[340402769,1729200638180,-770.46480907,0.00010912,2]
[340402770,1729200638189,-770.46480907,0.00010918,2]
[340402771,1729200638199,-7400.35336848,0.00010923,2]
[340402803,1729200640371,-1045.90484595,0.00010923,2]
[340402818,1729200732473,1958.28,0.00010315,2]
[340402819,1729200774881,1030.1146154,0.000215,40]
[340402820,1729200782047,159.66,0.00010293,2]
[340402822,1729200795680,500.0,0.00025,120]
[340402823,1729200796161,1000.0,0.00021,30]
[340402825,1729200881418,1852.42,0.00010177,2]
[340402826,1729200914106,308.45881937,0.00013698,120]
[340402829,1729200947900,688.5,8.403e-05,2]
[340402830,1729200978236,177.47,0.00010311,2]
[340402832,1729201015803,23890.0,0.00010278,2]
[340402837,1729201103914,250.0,0.00010011,2]
[340402838,1729201129172,187.21,0.0001005,2]
[340402841,1729201168959,151.71,0.00010025,2]
[340402842,1729201169168,151.71,0.00010032,2]
[340402843,1729201169412,151.71,0.00010038,2]
[340402844,1729201169626,151.71,0.00010044,2]
[340402845,1729201169857,151.71,0.00010051,2]
[340402846,1729201170960,151.71,0.00010057,2]
[340402847,1729201171038,151.71,0.00010063,2]
[340402848,1729201171274,151.71,0.00010069,2]
[340402849,1729201171390,151.71,0.00010076,2]
[340402850,1729201180352,1000.0,0.00010035,2]
[340402851,1729201187646,250.0,0.00010032,2]
[340402854,1729201246088,200.0,9.982e-05,2]
[340402855,1729201355547,1343.53,9.969e-05,2]
[340402856,1729201397642,500.0,0.00025,120]
[340402857,1729201468070,654.07,8.269e-05,2]
[340402861,1729201575472,180.23,9.998e-05,2]
[340402862,1729201615484,-150.0,0.00010486,2]
[340402863,1729201621946,550.0,0.0001,2]
[340402864,1729201645151,-180.64,0.00010519,2]
[340402865,1729201645172,-654.07,0.00010532,2]
[340402866,1729201645193,-540.92226495,0.00010758,2]
[340402867,1729201671716,250.0,0.00010049,2]
[340402868,1729201714793,200.0,0.00010111,2]
[340402871,1729201756495,250.0,0.00010037,2]
[340402875,1729201832150,-150.0,0.00010726,2]
[340402876,1729201832160,-201.89855854,0.00010758,2]
[340402877,1729201832182,-220.58297651,0.00010758,2]
[340402878,1729201832194,-412.81320112,0.00010759,2]
[340402879,1729201832206,-104.63569888,0.00010759,2]
[340402880,1729201832215,-295.36430112,0.00010759,2]
[340402881,1729201832226,-302.82959888,0.00010759,2]
[340402882,1729201832236,-300.0,0.00010832,2]
[340402883,1729201832245,-1895.51811862,0.00010832,2]
[340402884,1729201832257,-3372.54487743,0.00010832,2]
[340402885,1729201832268,-2285.89488508,0.00010832,2]
[340402886,1729201832279,-983.93,0.00010832,2]
[340402887,1729201832290,-700.0,0.00010832,2]
[340402888,1729201832301,-4363.30841209,0.00010832,2]
[340402889,1729201832324,-588.74678369,0.00010832,2]
[340402890,1729201832335,-1974.18309637,0.00010832,2]
[340402891,1729201832345,-2248.6741294,0.00010832,2]
[340402892,1729201832357,-750.26546194,0.00010832,2]
[340402893,1729201832368,-1266.60175907,0.00010832,2]
[340402894,1729201832379,-628.42,0.00010832,2]
[340402895,1729201832390,-4726.6229248,0.00010832,2]
[340402896,1729201832399,-6847.57967407,0.00010833,2]
[340402897,1729201832410,-1274.32993384,0.00010833,2]
[340402898,1729201832421,-552.31758557,0.00010833,2]
[340402899,1729201832432,-4212.6311127,0.00010833,2]
[340402900,1729201832443,-337.34931894,0.00010833,2]
[340402901,1729201832453,-1285.70283055,0.00010833,2]
[340402902,1729201832464,-357.46371413,0.00010833,2]
[340402903,1729201832483,-5221.07153573,0.00010833,2]
[340402904,1729201832494,-9951.80583293,0.00010833,2]
[340402905,1729201832505,-10402.4493057,0.00010833,2]
[340402906,1729201832516,-290.29915584,0.00010833,2]
[340402907,1729201832525,-150.0,0.00010856,2]
[340402908,1729201832534,-121.91525081,0.00010859,2]
[340402909,1729201832549,-2984.3221489,0.00010859,2]
[340402910,1729201832567,-1644.32044716,0.00010859,2]
[340402911,1729201832584,-737.5985368,0.00010859,2]
[340402912,1729201832594,-2045.75766083,0.00010859,2]
[340402913,1729201832607,-182634.3249555,0.00010859,2]
[340402914,1729201832615,-501.77689152,0.00010873,2]
[340402915,1729201832624,-2239.79,0.00010873,2]
[340402916,1729201832633,-500.0,0.00010873,2]
[340402917,1729201832643,-160.85533464,0.00010873,2]
[340402918,1729201832652,-306.44469223,0.00010873,2]
[340402919,1729201832661,-1735.06675462,0.00010899,2]
[340402920,1729201832670,-1735.06675454,0.00010899,2]
[340402921,1729201832679,-1735.06675454,0.00010899,2]
[340402922,1729201832689,-1735.06675454,0.00010899,2]
[340402923,1729201832698,-1735.06675454,0.00010899,2]
[340402924,1729201832708,-1735.06675454,0.00010899,2]
[340402925,1729201832718,-1735.06675454,0.00010899,2]
[340402926,1729201832728,-1735.06675454,0.00010899,2]
[340402927,1729201832737,-748.24,0.00010899,2]
[340402928,1729201832747,-1280.75,0.00010899,2]
[340402929,1729201832755,-13008.55,0.00010899,2]
[340402930,1729201832764,-26268.555,0.000109,2]
[340402931,1729201832773,-272.8281,0.000109,2]
[340402932,1729201832782,-340.5965,0.000109,2]
[340402933,1729201832791,-1028.0,0.000109,2]
[340402934,1729201832800,-163.14608641,0.000109,2]
[340402935,1729201832809,-9251.3322,0.000109,2]
[340402936,1729201832818,-151.137,0.000109,2]
[340402937,1729201832827,-4986.3405,0.000109,2]
[340402938,1729201832836,-316.67134172,0.000109,2]
[340402939,1729201832845,-3337.6459,0.000109,2]
[340402940,1729201832855,-398.9263,0.000109,2]
[340402941,1729201832865,-1128.2616,0.000109,2]
[340402942,1729201832874,-1704.2607,0.000109,2]
[340402943,1729201832884,-493.199,0.000109,2]
[340402944,1729201832895,-500.0,0.000109,2]
[340402945,1729201832905,-60399.3807,0.000109,2]
[340402946,1729201832917,-499.99,0.000109,2]
[340402947,1729201832926,-501.48945397,0.000109,2]
[340402948,1729201832935,-501.48945394,0.000109,2]
[340402949,1729201832945,-501.48945394,0.000109,2]
[340402950,1729201832955,-501.48945394,0.000109,2]
[340402951,1729201832965,-501.48945394,0.000109,2]
[340402952,1729201832974,-501.48945394,0.000109,2]
[340402953,1729201832983,-501.48945394,0.000109,2]
[340402954,1729201832992,-501.48945394,0.000109,2]
[340402955,1729201833001,-1021.3872066,0.000109,2]
[340402956,1729201833010,-186.01079357,0.000109,2]
[340402957,1729201833019,-425.78502042,0.000109,2]
[340402958,1729201833029,-1735.06675454,0.00010905,2]
[340402959,1729201833038,-3379.89,0.00010905,2]
[340402960,1729201833047,-1021.38720658,0.00010907,2]
[340402961,1729201833056,-425.78502041,0.00010907,2]
[340402962,1729201833065,-150.99,0.00010911,2]
[340402963,1729201833075,-575.21,0.00010911,2]
[340402964,1729201833084,-163.1460864,0.00010911,2]
[340402965,1729201833094,-1021.38720658,0.00010914,2]
[340402966,1729201833104,-425.78502041,0.00010914,2]
[340402967,1729201833113,-1735.06675454,0.00010921,2]
[340402968,1729201833123,-163.1460864,0.00010923,2]
[340402969,1729201833133,-163.1460864,0.00010934,2]
[340402970,1729201833142,-163.1460864,0.00010945,2]
[340402971,1729201833151,-500.0,0.00010958,2]
[340402972,1729201833160,-500.0,0.00010958,2]
[340402973,1729201833171,-499.14692765,0.00010958,2]
[340402974,1729201833182,-153.58,0.00010959,2]
[340402975,1729201833191,-213.4,0.00010959,2]
[340402976,1729201833200,-1500.0,0.00010959,2]
[340402977,1729201833210,-500.0,0.00010959,2]
[340402978,1729201833220,-150.81,0.00010959,2]
[340402979,1729201833229,-150.0,0.00010959,2]
[340402980,1729201833238,-250.0,0.00010959,2]
[340402981,1729201833248,-154.63,0.00010959,2]
[340402982,1729201833258,-161.61801503,0.00010973,2]
[340402983,1729201833268,-571.62948263,0.00010973,2]
[340402984,1729201833278,-500.0,0.00010973,2]
[340402985,1729201833287,-500.0,0.00010999,2]
[340402986,1729201833296,-366.98795858,0.00010999,2]
[340402987,1729201833306,-159.23702565,0.00010999,2]
[340402988,1729201833315,-746.0,0.00011,2]
[340402989,1729201833324,-74978.93107788,0.00011,2]
[340402990,1729201833337,-12379.10156961,0.00011,2]
[340402991,1729201833348,-664.57727663,0.00011,2]
[340402992,1729201833359,-7068.50393134,0.00011,2]
[340402993,1729201833371,-8486.04533077,0.00011,2]
[340402994,1729201833381,-5395.38119057,0.00011,2]
[340402995,1729201833396,-793.35,0.00011,2]
[340402996,1729201838272,-156.84422594,0.000109,2]
[340402997,1729201838281,-28609.45869716,0.00011,2]
[340402998,1729201838292,-6756.10214935,0.00011,2]
[340402999,1729201838303,-308.42346545,0.00011,2]
[340403000,1729201838314,-1850.0,0.00011,2]
[340403001,1729201838325,-2757.58727979,0.00011,2]
[340403002,1729201838336,-348.23005832,0.00011,2]
[340403003,1729201838351,-8059.376716,0.00011,2]
[340403004,1729201838362,-18958.69146001,0.00011,2]
[340403005,1729201838373,-431.12774655,0.00011,2]
[340403006,1729201838384,-748.64325099,0.00011,2]
[340403007,1729201838395,-597.24,0.00011,2]
[340403008,1729201838406,-5740.77834692,0.00011,2]
[340403009,1729201838416,-1311.26005332,0.00011,2]
[340403010,1729201838427,-1886.88,0.00011,2]
[340403011,1729201838445,-516.12578492,0.00011,2]
[340403012,1729201838456,-765.41975306,0.00011,2]
[340403013,1729201838467,-1340.01178555,0.00011,2]
[340403014,1729201838477,-1524.03827589,0.00011,2]
[340403015,1729201838488,-941.43031319,0.00011,2]
[340403016,1729201838499,-1893.1272692,0.00011,2]
[340403017,1729201838510,-659.75132017,0.00011,2]
[340403018,1729201838521,-514.88286204,0.00011,2]
[340403019,1729201838531,-452.64,0.00011,2]
[340403020,1729201838542,-879.14563992,0.00011,2]
[340403021,1729201838553,-2056.46944238,0.00011,2]
[340403022,1729201838565,-135956.35176304,0.00011,2]
[340403023,1729201838582,-22590.85096767,0.00011,2]
[340403024,1729201838594,-888.51999758,0.00011,2]
[340403025,1729201838606,-2397.52493888,0.00011,2]
[340403026,1729201838625,-880.12,0.00011,2]
[340403027,1729201838636,-612.18240239,0.00011,2]
[340403028,1729201838648,-1735.08385043,0.00011,2]
[340403029,1729201838661,-1765.0,0.00011,2]
[340403030,1729201838673,-1524.64822492,0.00011,2]
[340403031,1729201838684,-1921.952907,0.00011,2]
[340403032,1729201838697,-517.48,0.00011,2]
[340403033,1729201838707,-3755.47355016,0.00011,2]
[340403034,1729201838718,-4936.4916975,0.00011,2]
[340403035,1729201838733,-1632.18970442,0.00011,2]
[340403036,1729201838743,-313.27,0.00011,2]
[340403037,1729201838754,-1120.66502401,0.00011,2]
[340403038,1729201838765,-254.99999,0.00011,2]
[340403039,1729201838893,-5167081.06831211,0.00011,2]
[340403040,1729201838907,-795115.34461642,0.00011,2]
[340403044,1729201840158,-675.0,0.00011,2]
[340403045,1729201840167,-281002.55561751,0.00011,2]
[340403046,1729201840183,-7372.9692368,0.00011,2]
[340403047,1729201840194,-542.02094383,0.00011,2]
[340403048,1729201840236,-9876.60459717,0.00011,2]
[340403049,1729201840248,-511.70455756,0.00011,2]
[340403050,1729201840260,-1048.582763,0.00011,2]
[340403051,1729201840272,-846.52210567,0.00011,2]
[340403052,1729201840359,-1986.15335335,0.00011,2]
[340403053,1729201840370,-753.99558445,0.00011,2]
[340403054,1729201840382,-104957.02681834,0.00011,2]
[340403055,1729201840393,-530.86535505,0.00011,2]
[340403056,1729201840416,-558.89350208,0.00011,2]
[340403057,1729201840427,-15481.50497149,0.00011,2]
[340403058,1729201840447,-2362628.4013677,0.00011,2]
[340403059,1729201840459,-326802.0336205,0.00011,2]
[340403060,1729201840470,-324484.28901508,0.00011,2]
[340403061,1729201841276,-1038.68189468,0.000109,2]
[340403062,1729201841298,-1005.92400522,0.000109,2]
[340403063,1729201841390,-255.42348,0.000109,2]
[340403064,1729201841402,-3853.52935295,0.000109,2]
[340403065,1729201841411,-7228.45842825,0.00011,2]
[340403066,1729201841422,-1743.96203131,0.00011,2]
[340403068,1729201841433,-1370.37733886,0.00011,2]
[340403070,1729201841444,-681.43362743,0.00011,2]
[340403206,1729201843400,-3632.45059965,0.00011,2]
[340403214,1729201846658,-6153.55873284,0.00010907,2]
[340403215,1729201846667,-137420.86698119,0.00011,2]
[340403216,1729201996074,500.0,0.00025,120]
[340403217,1729201998410,612.53,8.642e-05,2]
[340403220,1729202124464,192.13,0.00010397,2]
[340403221,1729202156482,-164.07,0.00010473,2]
[340403222,1729202157704,2168.68,0.00010332,2]
[340403224,1729202211565,250.0,0.00010332,2]
[340403225,1729202241147,-840.0,0.00010423,2]
[340403226,1729202271586,-250.0,0.00010458,2]
[340403227,1729202381144,-200.0,0.00010464,2]
[340403228,1729202403529,-300.0,0.00010472,2]
[340403235,1729202522189,-300.0,0.00010472,2]
[340403236,1729202526796,-150.0,0.00010435,2]
[340403240,1729202587399,23870.0,0.00010204,2]
[340403243,1729202595781,500.0,0.00025,120]
[340403246,1729202617227,161.99,0.0001014,2]
[340403247,1729202647798,-150.0,0.00010435,2]
[340403249,1729202702913,-300.0,0.00010472,2]
[340403253,1729202728822,250.0,0.00010133,2]
[340403263,1729202769190,-150.0,0.00010439,2]
[340403264,1729202770711,328.0,0.0001009,2]
[340403265,1729202805856,250.0,0.00010054,2]
[340403266,1729202814888,581.9,8.219e-05,2]
[340403267,1729202816473,-581.9,0.0001048,2]
[340403268,1729202828142,-1437.47936802,0.00010573,2]
[340403269,1729202828162,-2482.0,0.00010673,2]
[340403270,1729202828182,-1063.18287627,0.00010759,2]
[340403271,1729202867779,187.21,0.0001008,2]
[340403272,1729202870310,2345.959,0.00010373,2]
[340403273,1729202922696,24640.0158,0.00010373,2]
[340403274,1729203031411,-150.0,0.00010726,2]
[340403275,1729203031423,-680.77232373,0.00010759,2]
[340403276,1729203031433,-300.0,0.00010798,2]
[340403277,1729203031442,-150.0,0.00010798,2]
[340403278,1729203031451,-666.55,0.00010798,2]
[340403279,1729203031460,-1260.4249,0.00010798,2]
[340403280,1729203031469,-245000.0,0.00010799,2]
[340403281,1729203031478,-183.04,0.00010867,2]
[340403282,1729203031487,-60938.2923,0.00010898,2]
[340403283,1729203031496,-37641.7814,0.00010899,2]
[340403284,1729203031505,-40844.03295856,0.00010899,2]
[340403311,1729203039588,-391.32500001,0.00010899,2]
[340403363,1729203127628,600.0,0.000104,3]
[340403364,1729203130543,-1300.0,0.000105,3]
[340403365,1729203134539,-150.0,0.00010462,2]
[340403366,1729203193304,7698.22,0.00010072,2]
[340403368,1729203196639,500.0,0.00025,120]
[340403373,1729203255892,-150.0,0.00010464,2]
[340403374,1729203276713,250.0,0.00010112,2]
[340403375,1729203278986,162.57,0.0001015,2]
[340403376,1729203292457,737.6,0.00010099,2]
[340403377,1729203357457,250.0,0.00010093,2]
[340403378,1729203378185,-150.0,0.00010466,2]
[340403379,1729203434347,550.0,0.0001,2]
[340403380,1729203478612,558.93,8.219e-05,2]
[340403381,1729203480216,-558.93,0.0001048,2]
[340403382,1729203499892,-150.0,0.00010468,2]
[340403385,1729203683009,188.13,0.00010006,2]
[340403387,1729203795472,500.0,0.00025,120]
[340403391,1729203851882,300.0,0.00013799,120]
[340403392,1729203896234,250.0,0.0001001,2]
[340403393,1729203935674,158.65,0.00010068,2]
[340403394,1729203935890,158.65,0.00010093,2]
[340403395,1729203936090,158.65,0.00010118,2]
[340403396,1729203968343,1000.0,0.00010061,2]
[340403397,1729203991148,503.03,8.219e-05,2]
[340403398,1729203992103,-503.03,0.0001048,2]
[340403399,1729204026908,500.0,0.000102,3]
[340403400,1729204029123,1100.0,0.000103,3]
[340403401,1729204031242,1600.0,0.000104,3]
[340403402,1729204034206,-2200.0,0.000105,3]
[340403403,1729204046140,-3041.8404,0.00010599,2]
[340403404,1729204046161,-704.47547288,0.00010599,2]
[340403405,1729204088361,250.0,0.00010017,2]
[340403415,1729204231674,-300.0,0.00010598,2]
[340403416,1729204231683,-150.0,0.00010598,2]
[340403417,1729204231693,-750.0,0.00010599,2]
[340403418,1729204231769,-13187.34071632,0.00010599,2]
[340403419,1729204231790,-13807.60796371,0.00010599,2]
[340403420,1729204231801,-1184.307551,0.00010599,2]
[340403421,1729204231816,-4195.82695552,0.00010599,2]
[340403424,1729204237671,-10916.79974706,0.00010599,2]
[340403425,1729204237979,-521.13778104,0.00010599,2]
[340403436,1729204239670,-1377.62653051,0.00010599,2]
[340403437,1729204239767,-655.78008369,0.00010599,2]
[340403513,1729204242884,-2999.01342095,0.00010599,2]
[340403514,1729204242898,-253.16663782,0.00010599,2]
[340403516,1729204242909,-50151.39261238,0.00010599,2]
[340403517,1729204242919,-2946.7393,0.00010599,2]
[340403518,1729204242929,-3768.3757477,0.00010599,2]
[340403523,1729204245694,-1674.05,0.00010599,2]
[340403531,1729204250924,177.47,9.981e-05,2]
[340403533,1729204394699,388.761097,0.00025,120]
[340403534,1729204411094,190.68,9.961e-05,2]
[340403535,1729204463810,250.0,9.954e-05,2]
[340403537,1729204517139,452.72,8.219e-05,2]
[340403538,1729204518228,-452.72,0.00010464,2]
[340403540,1729204584971,-1000.0,0.000105,2]
[340403541,1729204657147,250.0,9.753e-05,2]
[340403542,1729204661913,-1000.0,0.00010499,2]
[340403543,1729204662977,-795.5245,0.00010499,2]
[340403544,1729204671670,1000.0,9.743e-05,2]
[340403545,1729204735237,-1000.0,0.000105,2]
[340403546,1729204735258,-980.0,0.000105,2]
[340403547,1729204737799,-1000.0,0.000105,2]
[340403548,1729204803348,-150.0,0.000105,2]
[340403549,1729204803882,-150.0,0.000105,2]
[340403550,1729204805091,-150.0,0.000105,2]
[340403551,1729204805898,-150.0,0.000105,2]
[340403552,1729204806404,-150.0,0.000105,2]
[340403553,1729204813186,-150.0,0.000105,2]
[340403554,1729204814638,-150.0,0.000105,2]
[340403556,1729204815737,-150.0,0.000105,2]
[340403557,1729204816286,-150.0,0.000105,2]
[340403558,1729204817861,-150.0,0.000105,2]
[340403559,1729204818438,-150.0,0.000105,2]
[340403560,1729204818899,-150.0,0.000105,2]
[340403561,1729204819408,-150.0,0.000105,2]
[340403562,1729204823873,-150.0,0.000105,2]
[340403563,1729204824434,-150.0,0.000105,2]
[340403564,1729204826600,-210.45245589,0.000105,2]
[340403565,1729204895755,162.57,9.755e-05,2]
[340403568,1729205023814,221.14,0.00025,120]
[340403569,1729205031664,221.14,0.00025,120]
[340403570,1729205043440,221.14,0.00025,120]
[340403571,1729205055663,221.14,0.00025,120]
[340403575,1729205157056,-540.9223,0.00010499,2]
[340403576,1729205158183,250.0,9.812e-05,2]
[340403579,1729205213152,200.0,0.0001008,2]
[340403580,1729205237476,300.0,0.000102,3]
[340403581,1729205239623,700.0,0.000103,3]
[340403582,1729205241713,1100.0,0.000104,3]
[340403583,1729205244418,-538.71714119,0.000105,3]
[340403584,1729205245141,-861.28285881,0.000105,3]
[340403585,1729205245163,-150.0,0.00010598,2]
[340403586,1729205245182,-601.43237942,0.00010599,2]
[340403587,1729205248863,550.0,0.0001,2]
[340403588,1729205316100,440.16,8.219e-05,2]
[340403589,1729205339983,160.56224002,0.00025,120]
[340403590,1729205352617,250.0,9.946e-05,2]
[340403592,1729205424436,9568.53,9.988e-05,2]
[340403609,1729205431881,-440.16,0.00010473,2]
[340403610,1729205431891,-500.0,0.00010573,2]
[340403611,1729205431900,-505.06779306,0.00010573,2]
[340403612,1729205431909,-4170.83237288,0.00010599,2]
[340403613,1729205431919,-51578.62503217,0.00010599,2]
[340403617,1729205437895,-25985.26771995,0.00010599,2]
[340403636,1729205440023,-16875.99,0.00010599,2]
[340403658,1729205440430,-1606.14023976,0.00010599,2]
[340403660,1729205440442,-673.089211,0.00010599,2]
[340403694,1729205442859,-3280.88779712,0.00010599,2]
[340403695,1729205442868,-3571.19639178,0.00010599,2]
[340403696,1729205442898,-520.2443575,0.00010599,2]
[340403700,1729205443307,-240908.55925072,0.00010599,2]
[340403701,1729205443340,-5170.8643,0.00010599,2]
[340403703,1729205443349,-1800.0,0.000106,3]
[340403704,1729205443358,-150.0,0.00010603,2]
[340403705,1729205443368,-29999.99,0.00010688,2]
[340403706,1729205443377,-26042.38,0.00010688,2]
[340403707,1729205443386,-1114.32,0.00010688,2]
[340403708,1729205443395,-160.98897749,0.000107,2]
[340403709,1729205443404,-158.32920976,0.000107,2]
[340403710,1729205443413,-300.0,0.000107,3]
[340403711,1729205443422,-150.0,0.00010764,2]
[340403712,1729205443431,-2900.0,0.00010764,2]
[340403713,1729205443440,-3111.7248757,0.00010789,2]
[340403714,1729205443449,-6056.69,0.00010789,2]
[340403715,1729205443458,-9999.99,0.00010789,2]
[340403716,1729205443468,-2320.35,0.0001079,2]
[340403717,1729205443477,-499.99,0.0001079,2]
[340403718,1729205443487,-197.65969227,0.0001079,2]
[340403719,1729205443496,-563.0,0.000108,2]
[340403720,1729205443505,-2182.85412252,0.000108,2]
[340403721,1729205443514,-272866.43272275,0.000108,2]
[340403727,1729205575299,542.23,0.0001009,2]
[340403728,1729205617371,151.43,0.00010275,2]
[340403729,1729205617512,151.43,0.00010281,2]
[340403730,1729205617619,151.43,0.00010286,2]
[340403731,1729205617857,151.43,0.00010291,2]
[340403732,1729205618084,151.43,0.00010296,2]
[340403733,1729205618382,151.43,0.00010301,2]
[340403734,1729205618952,151.43,0.00010306,2]
[340403735,1729205619028,151.43,0.00010311,2]
[340403736,1729205619089,151.43,0.00010317,2]
[340403737,1729205619231,151.43,0.00010322,2]
[340403738,1729205619436,151.43,0.00010327,2]
[340403739,1729205803861,-150.0,0.00010426,2]
[340403740,1729205804461,-150.0,0.00010428,2]
[340403741,1729205805560,-150.0,0.00010429,2]
[340403742,1729205806192,-150.0,0.00010436,2]
[340403743,1729205808357,150.0,9.853e-05,2]
[340403744,1729205808381,690.0,9.853e-05,2]
[340403745,1729205853827,250.0,9.525e-05,2]
[340403746,1729205865096,472.12,8.219e-05,2]
[340403747,1729205866462,172.39,7.615e-05,2]
[340403748,1729205870617,250.0,9.512e-05,2]
[340403749,1729205898399,301.28,9.512e-05,2]
[340403764,1729205938744,161.68,9.512e-05,2]
[340403774,1729206016055,180.64,0.0001006,2]
[340403775,1729206020019,216.82,9.512e-05,2]
[340403787,1729206165029,200.0,9.518e-05,2]
[340403792,1729206266701,271.11,9.516e-05,2]
[340403815,1729206359272,250.0,9.51e-05,2]
[340403816,1729206362417,524.821,0.00010399,2]
[340403817,1729206374568,942.5091,0.00010399,2]
[340403818,1729206375862,448.51,8.219e-05,2]
[340403819,1729206399679,186.2089,0.00010399,2]
[340403820,1729206422832,718.73968401,0.00010337,2]
[340403821,1729206427761,718.73968401,0.00010338,2]
[340403823,1729206443132,-150.0,0.00010427,2]
[340403824,1729206443152,-500.0,0.00010427,2]
[340403825,1729206443172,-500.0,0.00010427,2]
[340403826,1729206443192,-150.0,0.00010431,2]
[340403827,1729206443213,-150.0,0.00010438,2]
[340403828,1729206443234,-3195.67302171,0.00010438,2]
[340403829,1729206450668,250.0,9.536e-05,2]
[340403831,1729206570013,933.28399695,0.00025,120]
[340403833,1729206573246,1000.0,9.67e-05,2]
[340403834,1729206614260,162.57,9.663e-05,2]
[340403835,1729206630627,288.0,0.00025,120]
[340403840,1729206632095,-448.51,0.0001045,2]
[340403841,1729206632104,-150.0,0.00010462,2]
[340403842,1729206632113,-150.0,0.00010474,2]
[340403843,1729206632123,-150.0,0.00010498,2]
[340403844,1729206632132,-1.49,0.00010498,2]
[340403845,1729206632143,-446.45853724,0.00010498,2]
[340403846,1729206632281,-766.71121484,0.00010498,2]
[340403847,1729206632293,-2862.03116841,0.00010498,2]
[340403848,1729206632345,-26178.08627503,0.00010498,2]
[340403849,1729206632355,-138211.96615846,0.00010499,2]
[340403864,1729206638195,-52034.4060168,0.00010499,2]
[340403865,1729206638241,-1729.06733478,0.00010499,2]
[340403866,1729206638253,-2216.38758432,0.00010499,2]